[Event "*** Titled Tuesday Blitz"]
[Site "Chess.com"]
[Date "2020.04.21"]
[Round "1"]
[White "wadsy27"]
[Black "AnishGiri"]
[Result "1-0"]
[WhiteElo "2490"]
[BlackElo "3009"]
[TimeControl "180+1"]
[EndTime "10:08:43 PDT"]
[Termination "wadsy27 won by checkmate"]

1. c4 {[%clk 0:02:59.7]} 1... e5 {[%clk 0:02:59.5]} 2. g3 {[%clk 0:02:59.5]}
2... Nf6 {[%clk 0:02:58]} 3. Bg2 {[%clk 0:02:58.9]} 3... c6 {[%clk 0:02:56.4]}
4. d4 {[%clk 0:02:58.3]} 4... e4 {[%clk 0:02:56.1]} 5. Nc3 {[%clk 0:02:57.3]}
5... d5 {[%clk 0:02:50.8]} 6. cxd5 {[%clk 0:02:57]} 6... cxd5 {[%clk 0:02:50.3]}
7. Bg5 {[%clk 0:02:57.6]} 7... Nbd7 {[%clk 0:02:45]} 8. Qb3 {[%clk 0:02:51.4]}
8... h6 {[%clk 0:02:44.3]} 9. Bf4 {[%clk 0:02:49.2]} 9... g5 {[%clk 0:02:33.4]}
10. Be5 {[%clk 0:02:48.6]} 10... Qa5 {[%clk 0:02:12.6]} 11. f3 {[%clk
0:02:22.8]} 11... Bb4 {[%clk 0:01:58.8]} 12. Nh3 {[%clk 0:02:04.9]} 12... Nxe5
{[%clk 0:01:52.9]} 13. dxe5 {[%clk 0:02:04.8]} 13... Nd7 {[%clk 0:01:49]} 14.
O-O {[%clk 0:01:57]} 14... Bxc3 {[%clk 0:01:48.1]} 15. bxc3 {[%clk 0:01:49.9]}
15... Nxe5 {[%clk 0:01:48.3]} 16. f4 {[%clk 0:01:42.7]} 16... Nc4 {[%clk
0:01:42.3]} 17. fxg5 {[%clk 0:01:32.3]} 17... Nd2 {[%clk 0:01:30.8]} 18. Qd1
{[%clk 0:01:19.7]} 18... Nxf1 {[%clk 0:01:28.4]} 19. Qxf1 {[%clk 0:01:19.8]}
19... Bxh3 {[%clk 0:01:21.1]} 20. Bxh3 {[%clk 0:00:59.7]} 20... Qb6+ {[%clk
0:00:56.5]} 21. Kg2 {[%clk 0:00:55.4]} 21... hxg5 {[%clk 0:00:55.5]} 22. Rd1
{[%clk 0:00:51.9]} 22... Rd8 {[%clk 0:00:50.4]} 23. Qf5 {[%clk 0:00:45.9]} 23...
Qe6 {[%clk 0:00:50.3]} 24. Qxe6+ {[%clk 0:00:41.4]} 24... fxe6 {[%clk
0:00:51.2]} 25. Bxe6 {[%clk 0:00:41.5]} 25... Rh6 {[%clk 0:00:29.9]} 26. Bxd5
{[%clk 0:00:41.1]} 26... Rhd6 {[%clk 0:00:30.5]} 27. c4 {[%clk 0:00:41.1]} 27...
b5 {[%clk 0:00:31.2]} 28. Rf1 {[%clk 0:00:32.1]} 28... bxc4 {[%clk 0:00:31.1]}
29. Bxc4 {[%clk 0:00:31.5]} 29... Rc8 {[%clk 0:00:30.2]} 30. Bb5+ {[%clk
0:00:29.8]} 30... Ke7 {[%clk 0:00:30.4]} 31. Rf5 {[%clk 0:00:29.8]} 31... g4
{[%clk 0:00:23.9]} 32. Rf4 {[%clk 0:00:24.2]} 32... Rd4 {[%clk 0:00:23.3]} 33.
Rxg4 {[%clk 0:00:22.4]} 33... Kf6 {[%clk 0:00:20.6]} 34. Bd3 {[%clk 0:00:17.9]}
34... Re8 {[%clk 0:00:17.6]} 35. Kf2 {[%clk 0:00:16.1]} 35... a5 {[%clk
0:00:11.1]} 36. Rf4+ {[%clk 0:00:16.1]} 36... Kg7 {[%clk 0:00:07.5]} 37. Bb5
{[%clk 0:00:16.1]} 37... Re5 {[%clk 0:00:06.2]} 38. a4 {[%clk 0:00:16.3]} 38...
e3+ {[%clk 0:00:06]} 39. Kf3 {[%clk 0:00:16.2]} 39... Rd1 {[%clk 0:00:06.5]} 40.
Kg4 {[%clk 0:00:15.3]} 40... Rh1 {[%clk 0:00:05.7]} 41. h4 {[%clk 0:00:15.4]}
41... Rh2 {[%clk 0:00:06.2]} 42. Rd4 {[%clk 0:00:14.7]} 42... Rf2 {[%clk
0:00:05.9]} 43. Rd6 {[%clk 0:00:14.5]} 43... Rf8 {[%clk 0:00:03.9]} 44. Ra6
{[%clk 0:00:14.2]} 44... Rd8 {[%clk 0:00:03.2]} 45. Rxa5 {[%clk 0:00:14.3]}
45... Rd4+ {[%clk 0:00:03.9]} 46. Kh3 {[%clk 0:00:14.4]} 46... Rf5 {[%clk
0:00:03.5]} 47. Ra6 {[%clk 0:00:14.5]} 47... Rf1 {[%clk 0:00:03]} 48. Re6 {[%clk
0:00:14.4]} 48... Rh1+ {[%clk 0:00:02.3]} 49. Kg2 {[%clk 0:00:14.6]} 49... Rb1
{[%clk 0:00:02.4]} 50. Rxe3 {[%clk 0:00:14.7]} 50... Rb2 {[%clk 0:00:03.1]} 51.
Kf3 {[%clk 0:00:14.6]} 51... Kf6 {[%clk 0:00:03.5]} 52. Re4 {[%clk 0:00:14.8]}
52... Rd1 {[%clk 0:00:03.7]} 53. e3 {[%clk 0:00:14.9]} 53... Rdd2 {[%clk
0:00:03.5]} 54. Kg4 {[%clk 0:00:15.1]} 54... Rg2 {[%clk 0:00:03.7]} 55. Rf4+
{[%clk 0:00:15.3]} 55... Kg7 {[%clk 0:00:04.2]} 56. e4 {[%clk 0:00:15.6]} 56...
Rg1 {[%clk 0:00:04]} 57. Rf3 {[%clk 0:00:15.7]} 57... Rb4 {[%clk 0:00:04.1]} 58.
Re3 {[%clk 0:00:15.4]} 58... Rb2 {[%clk 0:00:03.5]} 59. Kg5 {[%clk 0:00:15.6]}
59... Kf7 {[%clk 0:00:03.3]} 60. g4 {[%clk 0:00:15.8]} 60... Rbg2 {[%clk
0:00:02.7]} 61. Bd7 {[%clk 0:00:16.1]} 61... Ke7 {[%clk 0:00:03.2]} 62. Bf5
{[%clk 0:00:16]} 62... Ra2 {[%clk 0:00:03.9]} 63. h5 {[%clk 0:00:16.4]} 63...
Rxa4 {[%clk 0:00:04.5]} 64. h6 {[%clk 0:00:16.4]} 64... Rh1 {[%clk 0:00:05.3]}
65. h7 {[%clk 0:00:16.2]} 65... Ra7 {[%clk 0:00:05.4]} 66. Rc3 {[%clk
0:00:16.1]} 66... Ra8 {[%clk 0:00:05.3]} 67. Rc7+ {[%clk 0:00:16]} 67... Kf8
{[%clk 0:00:05.8]} 68. Kf6 {[%clk 0:00:14.9]} 68... Ra6+ {[%clk 0:00:05.9]} 69.
Kg5 {[%clk 0:00:14.5]} 69... Ra8 {[%clk 0:00:05.7]} 70. e5 {[%clk 0:00:14.5]}
70... Re8 {[%clk 0:00:05.7]} 71. e6 {[%clk 0:00:14.2]} 71... Rh2 {[%clk
0:00:05.1]} 72. Rf7# {[%clk 0:00:13.9]} 1-0

[Event "*** Titled Tuesday Blitz"]
[Site "Chess.com"]
[Date "2020.04.21"]
[Round "1"]
[White "Chessmasterzt"]
[Black "Bastiandash"]
[Result "1-0"]
[WhiteElo "2497"]
[BlackElo "1982"]
[TimeControl "180+1"]
[EndTime "10:08:44 PDT"]
[Termination "Chessmasterzt won by resignation"]

1. Nf3 {[%clk 0:02:54.4]} 1... Nf6 {[%clk 0:02:57.5]} 2. c4 {[%clk 0:02:52.5]}
2... e6 {[%clk 0:02:57.5]} 3. g3 {[%clk 0:02:51.1]} 3... d5 {[%clk 0:02:54.6]}
4. Bg2 {[%clk 0:02:52]} 4... Be7 {[%clk 0:02:53.5]} 5. O-O {[%clk 0:02:52.9]}
5... O-O {[%clk 0:02:50.3]} 6. d4 {[%clk 0:02:52.7]} 6... b6 {[%clk 0:02:44.4]}
7. cxd5 {[%clk 0:02:50]} 7... exd5 {[%clk 0:02:43.9]} 8. Nc3 {[%clk 0:02:48.2]}
8... Bb7 {[%clk 0:02:43.7]} 9. Bf4 {[%clk 0:02:48.6]} 9... Bd6 {[%clk
0:02:34.4]} 10. Ne5 {[%clk 0:02:38.5]} 10... Nbd7 {[%clk 0:02:30.6]} 11. Nb5
{[%clk 0:02:30.1]} 11... Be7 {[%clk 0:02:17.4]} 12. Rc1 {[%clk 0:02:04.9]} 12...
c5 {[%clk 0:02:16.8]} 13. dxc5 {[%clk 0:01:56.3]} 13... bxc5 {[%clk 0:02:07.5]}
14. Nc3 {[%clk 0:01:50.3]} 14... Nb6 {[%clk 0:02:00.9]} 15. Na4 {[%clk
0:01:44.8]} 15... Nxa4 {[%clk 0:01:49.3]} 16. Qxa4 {[%clk 0:01:45.7]} 16... Qb6
{[%clk 0:01:50.2]} 17. Nd3 {[%clk 0:01:30.4]} 17... Rfd8 {[%clk 0:01:43.5]} 18.
Be3 {[%clk 0:01:17.1]} 18... d4 {[%clk 0:01:29.5]} 19. Bg5 {[%clk 0:01:17.4]}
19... Bxg2 {[%clk 0:01:27.7]} 20. Kxg2 {[%clk 0:01:18.3]} 20... Rac8 {[%clk
0:01:26.8]} 21. Bxf6 {[%clk 0:01:13.8]} 21... Bxf6 {[%clk 0:01:16.6]} 22. Qc4
{[%clk 0:01:14.3]} 22... Be7 {[%clk 0:01:13.8]} 23. Rc2 {[%clk 0:01:14.3]} 23...
Rc7 {[%clk 0:01:12.8]} 24. Rfc1 {[%clk 0:01:14.5]} 24... Rdc8 {[%clk 0:01:13.2]}
25. h4 {[%clk 0:01:12.8]} 25... g6 {[%clk 0:01:01.8]} 26. Kg1 {[%clk 0:01:12.1]}
26... Kg7 {[%clk 0:01:00.4]} 27. Nf4 {[%clk 0:01:11.4]} 27... Rd7 {[%clk
0:00:35]} 28. Qa4 {[%clk 0:01:02.8]} 28... Rb7 {[%clk 0:00:20]} 29. Qc4 {[%clk
0:00:56.1]} 29... Rd7 {[%clk 0:00:19.3]} 30. Qd3 {[%clk 0:00:52.1]} 30... Qf6
{[%clk 0:00:15.9]} 31. Qe4 {[%clk 0:00:48.8]} 31... Qc6 {[%clk 0:00:15.8]} 32.
Qxc6 {[%clk 0:00:38]} 32... Rxc6 {[%clk 0:00:16.7]} 33. Nd3 {[%clk 0:00:38]}
33... Rdc7 {[%clk 0:00:16.4]} 34. Rc4 {[%clk 0:00:35.5]} 34... Kf6 {[%clk
0:00:15.6]} 35. b4 {[%clk 0:00:35.3]} 35... Ke6 {[%clk 0:00:16]} 36. bxc5 {[%clk
0:00:27.9]} 36... Kd5 {[%clk 0:00:14.5]} 37. Nb4+ {[%clk 0:00:27.5]} 37... Ke6
{[%clk 0:00:13.4]} 38. Nxc6 {[%clk 0:00:28.4]} 38... Rxc6 {[%clk 0:00:14.3]} 39.
Rxd4 {[%clk 0:00:27.7]} 39... Ke5 {[%clk 0:00:14.5]} 40. Rdc4 {[%clk 0:00:27.3]}
40... Kd5 {[%clk 0:00:14.9]} 41. Kg2 {[%clk 0:00:26.5]} 41... f5 {[%clk
0:00:14.7]} 42. e3 {[%clk 0:00:26.4]} 42... h6 {[%clk 0:00:10]} 43. R4c2 {[%clk
0:00:25.9]} 43... g5 {[%clk 0:00:10]} 44. hxg5 {[%clk 0:00:26.8]} 44... hxg5
{[%clk 0:00:10.9]} 45. Rd1+ {[%clk 0:00:27.1]} 45... Ke5 {[%clk 0:00:11.1]} 46.
Rdc1 {[%clk 0:00:28]} 46... g4 {[%clk 0:00:09.4]} 47. Rc4 {[%clk 0:00:27.1]}
47... Kd5 {[%clk 0:00:08.9]} 48. Rf4 {[%clk 0:00:26.8]} 48... Ke5 {[%clk
0:00:09.1]} 49. Ra4 {[%clk 0:00:27.2]} 49... a6 {[%clk 0:00:07.2]} 50. Rd4
{[%clk 0:00:18.6]} 50... Ke6 {[%clk 0:00:03.2]} 51. Rf4 {[%clk 0:00:17.6]} 51...
Ke5 {[%clk 0:00:02.8]} 52. e4 {[%clk 0:00:17.4]} 52... fxe4 {[%clk 0:00:02.5]}
53. Rc4 {[%clk 0:00:16.9]} 53... Bxc5 {[%clk 0:00:01.8]} 54. Rfxe4+ {[%clk
0:00:15.6]} 54... Kd5 {[%clk 0:00:02.7]} 55. Rxg4 {[%clk 0:00:15.4]} 55... Rb6
{[%clk 0:00:03.1]} 56. Rc2 {[%clk 0:00:13.7]} 56... Bd4 {[%clk 0:00:02.6]} 57.
Rd2 {[%clk 0:00:12.6]} 57... Rb4 {[%clk 0:00:03]} 58. Rgxd4+ {[%clk 0:00:12.4]}
58... Rxd4 {[%clk 0:00:03.9]} 59. Rxd4+ {[%clk 0:00:13.1]} 59... Kxd4 {[%clk
0:00:04.8]} 60. g4 {[%clk 0:00:13.7]} 60... Kc3 {[%clk 0:00:05.1]} 61. g5 {[%clk
0:00:13.9]} 61... Kb2 {[%clk 0:00:05.8]} 62. g6 {[%clk 0:00:14.8]} 62... Kxa2
{[%clk 0:00:06.7]} 63. g7 {[%clk 0:00:15.7]} 63... Kb1 {[%clk 0:00:07.5]} 64.
g8=Q {[%clk 0:00:15]} 64... a5 {[%clk 0:00:08.4]} 65. Qa8 {[%clk 0:00:14.7]}
65... a4 {[%clk 0:00:09.3]} 66. Qxa4 {[%clk 0:00:14.9]} 1-0

[Event "*** Titled Tuesday Blitz"]
[Site "Chess.com"]
[Date "2020.04.21"]
[Round "1"]
[White "drd_davi"]
[Black "Slovak_fighter2000"]
[Result "1/2-1/2"]
[WhiteElo "2393"]
[BlackElo "2553"]
[TimeControl "180+1"]
[EndTime "10:08:49 PDT"]
[Termination "Game drawn - insufficient material"]

1. e4 {[%clk 0:03:00.2]} 1... e6 {[%clk 0:02:57.9]} 2. d4 {[%clk 0:02:58.6]}
2... d5 {[%clk 0:02:57.2]} 3. Nc3 {[%clk 0:02:57.5]} 3... Nf6 {[%clk 0:02:55.8]}
4. Bg5 {[%clk 0:02:54.6]} 4... dxe4 {[%clk 0:02:54.2]} 5. Nxe4 {[%clk
0:02:54.8]} 5... Be7 {[%clk 0:02:53.9]} 6. Bxf6 {[%clk 0:02:53.3]} 6... gxf6
{[%clk 0:02:53.2]} 7. Nf3 {[%clk 0:02:54.2]} 7... f5 {[%clk 0:02:53.1]} 8. Nc3
{[%clk 0:02:51.9]} 8... a6 {[%clk 0:02:51.7]} 9. Qe2 {[%clk 0:02:47.1]} 9... b5
{[%clk 0:02:47.1]} 10. O-O-O {[%clk 0:02:45.8]} 10... b4 {[%clk 0:02:40.6]} 11.
Na4 {[%clk 0:02:45.4]} 11... Bd7 {[%clk 0:02:31.1]} 12. Nc5 {[%clk 0:02:44.3]}
12... Bb5 {[%clk 0:02:30.4]} 13. Qe5 {[%clk 0:01:50]} 13... Bf6 {[%clk
0:02:17.4]} 14. Qe3 {[%clk 0:01:37.9]} 14... Qd5 {[%clk 0:02:05.8]} 15. Kb1
{[%clk 0:01:28.3]} 15... Nc6 {[%clk 0:01:58]} 16. g3 {[%clk 0:01:01.2]} 16...
Bxf1 {[%clk 0:01:42.7]} 17. Rhxf1 {[%clk 0:01:02.1]} 17... a5 {[%clk 0:01:13.9]}
18. Rfe1 {[%clk 0:00:48.9]} 18... O-O-O {[%clk 0:01:01.3]} 19. Qd3 {[%clk
0:00:38]} 19... Nb8 {[%clk 0:00:55]} 20. Re3 {[%clk 0:00:17.6]} 20... Be7 {[%clk
0:00:43.1]} 21. Ne5 {[%clk 0:00:12.7]} 21... Bxc5 {[%clk 0:00:37.5]} 22. dxc5
{[%clk 0:00:13.6]} 22... Qxc5 {[%clk 0:00:34]} 23. Qe2 {[%clk 0:00:13.8]} 23...
Rxd1+ {[%clk 0:00:32]} 24. Qxd1 {[%clk 0:00:14.7]} 24... Rd8 {[%clk 0:00:31.7]}
25. Qe1 {[%clk 0:00:15.2]} 25... f6 {[%clk 0:00:23.8]} 26. Nd3 {[%clk
0:00:14.9]} 26... Qb5 {[%clk 0:00:19.5]} 27. Rxe6 {[%clk 0:00:15.1]} 27... Nd7
{[%clk 0:00:17]} 28. Qh1 {[%clk 0:00:11.9]} 28... Kb8 {[%clk 0:00:14.9]} 29. Qf3
{[%clk 0:00:09.1]} 29... Nb6 {[%clk 0:00:12.2]} 30. Qc6 {[%clk 0:00:06.9]} 30...
Qxc6 {[%clk 0:00:10.7]} 31. Rxc6 {[%clk 0:00:07.8]} 31... Nd5 {[%clk 0:00:07.2]}
32. Rc5 {[%clk 0:00:08.2]} 32... Kb7 {[%clk 0:00:04.8]} 33. Rxa5 {[%clk
0:00:07.5]} 33... c6 {[%clk 0:00:05.3]} 34. a3 {[%clk 0:00:06.7]} 34... bxa3
{[%clk 0:00:03.9]} 35. bxa3 {[%clk 0:00:07.1]} 35... Re8 {[%clk 0:00:04.8]} 36.
Ra4 {[%clk 0:00:06.4]} 36... Nc3+ {[%clk 0:00:04.6]} 37. Kb2 {[%clk 0:00:06.6]}
37... Nxa4+ {[%clk 0:00:05.5]} 38. Kb3 {[%clk 0:00:07.5]} 38... Nb6 {[%clk
0:00:05.5]} 39. Nc5+ {[%clk 0:00:07.6]} 39... Kc7 {[%clk 0:00:05.5]} 40. c3
{[%clk 0:00:08.5]} 40... Nd5 {[%clk 0:00:04.9]} 41. Nd3 {[%clk 0:00:09.4]} 41...
Re7 {[%clk 0:00:04.7]} 42. Kc4 {[%clk 0:00:10.3]} 42... Rd7 {[%clk 0:00:04.9]}
43. Nc5 {[%clk 0:00:11.2]} 43... Nb6+ {[%clk 0:00:05.8]} 44. Kb4 {[%clk
0:00:10.7]} 44... Rd5 {[%clk 0:00:06.7]} 45. Ne6+ {[%clk 0:00:10.1]} 45... Kd7
{[%clk 0:00:06]} 46. Nf4 {[%clk 0:00:11]} 46... Rd2 {[%clk 0:00:05.1]} 47. h4
{[%clk 0:00:09.6]} 47... Rb2+ {[%clk 0:00:05.1]} 48. Kc5 {[%clk 0:00:08.7]}
48... Rxf2 {[%clk 0:00:06]} 49. Nd3 {[%clk 0:00:07.4]} 49... Rd2 {[%clk
0:00:05]} 50. Kd4 {[%clk 0:00:08.3]} 50... Nd5 {[%clk 0:00:03.6]} 51. c4 {[%clk
0:00:07.6]} 51... Nc7 {[%clk 0:00:03.2]} 52. Kc3 {[%clk 0:00:08.5]} 52... Ne6
{[%clk 0:00:04.1]} 53. Kxd2 {[%clk 0:00:07.8]} 53... Kd6 {[%clk 0:00:03.1]} 54.
Ke3 {[%clk 0:00:07]} 54... c5 {[%clk 0:00:02.8]} 55. Nf4 {[%clk 0:00:06.8]}
55... Nd4 {[%clk 0:00:02.6]} 56. Nd5 {[%clk 0:00:05.5]} 56... Nc2+ {[%clk
0:00:02.4]} 57. Kd3 {[%clk 0:00:04.9]} 57... Nxa3 {[%clk 0:00:03.3]} 58. Nxf6
{[%clk 0:00:05.4]} 58... h6 {[%clk 0:00:02.6]} 59. Ng8 {[%clk 0:00:04.6]} 59...
Ke5 {[%clk 0:00:02.4]} 60. Nxh6 {[%clk 0:00:04.1]} 60... f4 {[%clk 0:00:02.4]}
61. gxf4+ {[%clk 0:00:03.7]} 61... Kxf4 {[%clk 0:00:03.3]} 62. Nf7 {[%clk
0:00:04.3]} 62... Kg4 {[%clk 0:00:03.5]} 63. Nd6 {[%clk 0:00:05.2]} 63... Kxh4
{[%clk 0:00:03.8]} 64. Nb7 {[%clk 0:00:06.1]} 64... Nxc4 {[%clk 0:00:04.4]} 65.
Nxc5 {[%clk 0:00:07]} 1/2-1/2

[Event "*** Titled Tuesday Blitz"]
[Site "Chess.com"]
[Date "2020.04.21"]
[Round "1"]
[White "luca_va99"]
[Black "JulAnt"]
[Result "1/2-1/2"]
[WhiteElo "2062"]
[BlackElo "2496"]
[TimeControl "180+1"]
[EndTime "10:08:51 PDT"]
[Termination "Game drawn by repetition"]

1. d4 {[%clk 0:02:58.3]} 1... Nf6 {[%clk 0:02:59.7]} 2. c4 {[%clk 0:02:58.3]}
2... d6 {[%clk 0:02:59.8]} 3. Nc3 {[%clk 0:02:57.8]} 3... Nbd7 {[%clk
0:03:00.1]} 4. e4 {[%clk 0:02:58]} 4... g6 {[%clk 0:03:00.1]} 5. Nf3 {[%clk
0:02:57.7]} 5... Bg7 {[%clk 0:03:00.4]} 6. Be2 {[%clk 0:02:58]} 6... e5 {[%clk
0:03:00.7]} 7. O-O {[%clk 0:02:58.1]} 7... O-O {[%clk 0:03:00.9]} 8. Re1 {[%clk
0:02:49.6]} 8... c6 {[%clk 0:02:58.3]} 9. Bf1 {[%clk 0:02:38.1]} 9... Qe7 {[%clk
0:02:54.9]} 10. Rb1 {[%clk 0:02:35.4]} 10... a5 {[%clk 0:02:53.4]} 11. a3 {[%clk
0:02:00.8]} 11... Re8 {[%clk 0:02:44.4]} 12. b4 {[%clk 0:01:48]} 12... Nf8
{[%clk 0:02:43.5]} 13. d5 {[%clk 0:01:21.1]} 13... Bg4 {[%clk 0:02:31.3]} 14. h3
{[%clk 0:01:09.7]} 14... Bxf3 {[%clk 0:02:30.8]} 15. Qxf3 {[%clk 0:01:10.6]}
15... c5 {[%clk 0:02:19.5]} 16. bxc5 {[%clk 0:01:08.6]} 16... dxc5 {[%clk
0:02:20.4]} 17. Bg5 {[%clk 0:00:42.9]} 17... h6 {[%clk 0:02:14.4]} 18. Be3
{[%clk 0:00:42.8]} 18... Rec8 {[%clk 0:02:04.5]} 19. Rb5 {[%clk 0:00:38.3]}
19... Ne8 {[%clk 0:01:59.4]} 20. Reb1 {[%clk 0:00:35]} 20... Rc7 {[%clk
0:01:39.6]} 21. Na4 {[%clk 0:00:34.6]} 21... Nd6 {[%clk 0:01:25.5]} 22. Bxc5
{[%clk 0:00:31]} 22... Qd7 {[%clk 0:01:14.8]} 23. Bxd6 {[%clk 0:00:28.8]} 23...
Qxd6 {[%clk 0:01:15.7]} 24. Rxb7 {[%clk 0:00:20.1]} 24... Qd7 {[%clk 0:01:06.3]}
25. Rxc7 {[%clk 0:00:16]} 25... Qxc7 {[%clk 0:01:06.2]} 26. c5 {[%clk
0:00:14.8]} 26... Nd7 {[%clk 0:01:02.5]} 27. Qc3 {[%clk 0:00:10.7]} 27... Bf8
{[%clk 0:00:57.9]} 28. d6 {[%clk 0:00:06.5]} 28... Qc8 {[%clk 0:00:55.6]} 29.
Bb5 {[%clk 0:00:06.4]} 29... Rb8 {[%clk 0:00:53]} 30. Qxa5 {[%clk 0:00:04.9]}
30... Nxc5 {[%clk 0:00:49.9]} 31. Rc1 {[%clk 0:00:04.6]} 31... Bxd6 {[%clk
0:00:47.9]} 32. Bf1 {[%clk 0:00:04.1]} 32... Ra8 {[%clk 0:00:44.7]} 33. Rxc5
{[%clk 0:00:02.8]} 33... Qf8 {[%clk 0:00:35.5]} 34. Qb5 {[%clk 0:00:01.4]} 34...
Rxa4 {[%clk 0:00:29.2]} 35. Qxa4 {[%clk 0:00:01.4]} 35... Bxc5 {[%clk
0:00:29.4]} 36. Qb5 {[%clk 0:00:01.1]} 36... Bxa3 {[%clk 0:00:29.4]} 37. Qxe5
{[%clk 0:00:01.2]} 37... Bd6 {[%clk 0:00:29.2]} 38. Qd5 {[%clk 0:00:01.5]} 38...
Qe7 {[%clk 0:00:28.9]} 39. Qd3 {[%clk 0:00:02]} 39... Qe5 {[%clk 0:00:28.3]} 40.
g3 {[%clk 0:00:01.9]} 40... h5 {[%clk 0:00:28.2]} 41. Qf3 {[%clk 0:00:02.5]}
41... Kg7 {[%clk 0:00:25.8]} 42. Kg2 {[%clk 0:00:03.4]} 42... Qe7 {[%clk
0:00:20.6]} 43. Be2 {[%clk 0:00:04.3]} 43... Be5 {[%clk 0:00:20.9]} 44. Qe3
{[%clk 0:00:04.3]} 44... Qd6 {[%clk 0:00:21]} 45. f4 {[%clk 0:00:04.4]} 45...
Bd4 {[%clk 0:00:21.5]} 46. Qd3 {[%clk 0:00:04.6]} 46... Qc5 {[%clk 0:00:21.7]}
47. h4 {[%clk 0:00:02.3]} 47... Qb6 {[%clk 0:00:20.3]} 48. Qf3 {[%clk
0:00:02.3]} 48... Bc5 {[%clk 0:00:20.3]} 49. Bf1 {[%clk 0:00:02.8]} 49... Qb2+
{[%clk 0:00:20.1]} 50. Qe2 {[%clk 0:00:03.7]} 50... Qd4 {[%clk 0:00:20.2]} 51.
Kh3 {[%clk 0:00:02.8]} 51... Qg1 {[%clk 0:00:20.3]} 52. Qg2 {[%clk 0:00:02.9]}
52... Qe3 {[%clk 0:00:20]} 53. Qe2 {[%clk 0:00:02.8]} 53... Qd4 {[%clk
0:00:19.7]} 54. Bg2 {[%clk 0:00:02.6]} 54... Qd7+ {[%clk 0:00:19.7]} 55. Kh2
{[%clk 0:00:02.3]} 55... Qd4 {[%clk 0:00:19.5]} 56. Kh3 {[%clk 0:00:01.7]} 56...
Qf6 {[%clk 0:00:19.7]} 57. Qf3 {[%clk 0:00:01.6]} 57... Qb6 {[%clk 0:00:20.2]}
58. Kh2 {[%clk 0:00:02.1]} 58... Qb4 {[%clk 0:00:20.2]} 59. Kh3 {[%clk
0:00:02.7]} 59... Qe1 {[%clk 0:00:20]} 60. f5 {[%clk 0:00:02.6]} 60... Bd4
{[%clk 0:00:17.4]} 61. fxg6 {[%clk 0:00:02.6]} 61... fxg6 {[%clk 0:00:17.6]} 62.
Qd3 {[%clk 0:00:02.8]} 62... Qf2 {[%clk 0:00:16.7]} 63. Qc4 {[%clk 0:00:02.2]}
63... Qf6 {[%clk 0:00:16.6]} 64. Qd5 {[%clk 0:00:02.3]} 64... Be5 {[%clk
0:00:16.1]} 65. Qb7+ {[%clk 0:00:02.7]} 65... Kh8 {[%clk 0:00:16.1]} 66. Qb3
{[%clk 0:00:03.6]} 66... Qe7 {[%clk 0:00:15.3]} 67. Qf3 {[%clk 0:00:03.9]} 67...
Qd7+ {[%clk 0:00:15.5]} 68. Kh2 {[%clk 0:00:04.3]} 68... Qd6 {[%clk 0:00:15.8]}
69. Bh3 {[%clk 0:00:04.3]} 69... Qd2+ {[%clk 0:00:15.7]} 70. Bg2 {[%clk
0:00:04.9]} 70... Qd6 {[%clk 0:00:15.9]} 71. Kh3 {[%clk 0:00:04.5]} 71... Qd7+
{[%clk 0:00:15.9]} 72. Kh2 {[%clk 0:00:04.9]} 72... Qd6 {[%clk 0:00:16.3]}
1/2-1/2